bitfinex/quotes_BTCUSD_20220226
["timestamp","ask_amount","ask_price","bid_price","bid_amount"]
[1645846229330,0.66583479,39429.0,39428.0,0.82258]
[1645846230231,0.66583479,39429.0,39428.0,0.82158]
[1645846230432,0.66583479,39429.0,39428.0,1.14625136]
[1645846231061,0.66583479,39429.0,39428.0,1.14725136]
[1645846232162,0.66583479,39429.0,39428.0,1.14625136]
[1645846232568,0.43383727,39429.0,39428.0,1.14625136]
[1645846235014,0.43383727,39429.0,39428.0,1.14725136]
[1645846236315,0.43383727,39429.0,39428.0,1.14625136]
[1645846238664,0.43383727,39429.0,39428.0,1.91595136]
[1645846238866,0.43383727,39429.0,39428.0,1.96595136]
[1645846239265,0.43734494,39429.0,39428.0,1.19625136]
[1645846240271,0.43734494,39429.0,39428.0,1.53218336]
[1645846241268,0.43734494,39429.0,39428.0,2.30188336]
[1645846242913,0.43734494,39429.0,39428.0,1.96595136]
[1645846243211,0.43734494,39429.0,39428.0,1.96695136]
[1645846243809,0.43734494,39429.0,39428.0,1.19725136]
[1645846244009,0.43734494,39429.0,39428.0,1.53318336]
[1645846244212,0.43734494,39429.0,39428.0,1.09655136]
[1645846244814,0.43734494,39429.0,39428.0,1.09555136]
[1645846245211,0.65469545,39429.0,39428.0,1.09555136]
[1645846246268,1.03242745,39429.0,39428.0,1.09555136]
[1645846246668,0.81507694,39429.0,39428.0,1.09555136]
[1645846246871,0.43734494,39429.0,39428.0,1.09555136]
[1645846250013,0.43734494,39429.0,39428.0,0.52373342]
[1645846251013,0.43834494,39429.0,39428.0,0.52373342]
[1645846251612,0.81607694,39429.0,39428.0,0.52373342]
[1645846252212,0.43834494,39429.0,39428.0,0.52373342]
[1645846252612,0.81607694,39429.0,39428.0,0.52373342]
[1645846252813,0.81107694,39429.0,39428.0,0.52373342]
[1645846254269,0.43334494,39429.0,39428.0,0.52373342]
[1645846254470,0.81007694,39429.0,39428.0,0.52373342]
[1645846254671,0.43234494,39429.0,39428.0,0.52373342]
[1645846255170,0.81007694,39429.0,39428.0,0.52373342]
[1645846256373,0.43234494,39429.0,39428.0,0.52373342]
[1645846259018,0.43234494,39429.0,39428.0,0.52473342]
[1645846260318,0.43234494,39429.0,39428.0,0.52373342]
[1645846260765,0.23234494,39429.0,39428.0,0.52373342]
[1645846261170,0.23234494,39429.0,39428.0,0.52473342]
[1645846262966,0.22734494,39429.0,39428.0,0.52473342]
[1645846263165,0.22934494,39429.0,39428.0,0.52473342]
[1645846263566,0.19934494,39429.0,39428.0,0.52473342]
[1645846264414,0.19934494,39429.0,39428.0,0.52373342]
[1645846264719,0.19734494,39429.0,39428.0,0.52373342]
[1645846265113,0.20034494,39429.0,39428.0,0.52373342]
[1645846266317,0.00262627,39429.0,39428.0,0.52373342]
[1645846266917,0.38035827,39429.0,39428.0,0.52373342]
[1645846267115,0.38235827,39429.0,39428.0,0.52373342]
[1645846268162,0.66440288,39429.0,39428.0,0.52373342]
[1645846268359,0.66240288,39429.0,39428.0,0.52373342]
[1645846268761,0.45100827,39429.0,39428.0,0.52373342]
[1645846268967,0.77253288,39429.0,39428.0,0.52373342]
[1645846269162,0.56113827,39429.0,39428.0,0.52373342]
[1645846269964,0.54921927,39429.0,39428.0,0.52373342]
[1645846270764,0.47856927,39429.0,39428.0,0.52373342]
[1645846273118,0.47956927,39429.0,39428.0,0.52373342]
[1645846273521,0.37956927,39429.0,39428.0,0.52373342]
[1645846274322,0.37856927,39429.0,39428.0,0.52373342]
[1645846275121,0.37956927,39429.0,39428.0,0.52373342]
[1645846276365,0.37856927,39429.0,39428.0,0.52373342]
[1645846280020,0.04816432,39420.0,39418.0,0.1343]
[1645846280217,0.04816432,39420.0,39416.0,0.5207669]
[1645846280418,0.04816432,39420.0,39416.0,0.33994138]
[1645846280818,0.04816432,39420.0,39416.0,0.5207669]
[1645846281020,0.04850604,39420.0,39416.0,0.33994138]
[1645846281219,0.04850604,39420.0,39416.0,0.5217669]
[1645846281417,0.04850604,39420.0,39416.0,0.34094138]
[1645846281620,0.04850604,39420.0,39416.0,0.18182552]
[1645846281822,0.04816432,39420.0,39416.0,0.001]
[1645846282218,0.04850604,39420.0,39416.0,0.001]
[1645846282518,0.04850604,39420.0,39415.0,0.5]
[1645846283163,0.04816432,39420.0,39415.0,0.501]
[1645846283369,0.00034172,39419.0,39415.0,0.501]
[1645846284167,0.04816432,39420.0,39415.0,0.501]
[1645846284371,0.04816432,39420.0,39415.0,0.68182552]
[1645846284569,0.00034195,39419.0,39415.0,0.68182552]
[1645846284767,0.00034195,39419.0,39415.0,0.501]
[1645846285168,0.00134195,39419.0,39415.0,0.68182552]
[1645846285368,0.00134195,39419.0,39415.0,0.501]
[1645846285570,0.001,39419.0,39415.0,0.68182552]
[1645846285870,0.00134195,39419.0,39415.0,0.501]
[1645846286267,0.00134195,39419.0,39415.0,0.5]
[1645846286471,0.00034195,39419.0,39415.0,0.5]
[1645846286769,0.04816432,39420.0,39415.0,0.5]
[1645846287028,0.00034195,39419.0,39415.0,0.5]
[1645846287223,0.00134195,39419.0,39415.0,0.5]
[1645846287523,0.00134195,39419.0,39415.0,0.8214395]
[1645846288324,0.00034206,39419.0,39415.0,0.8214395]
[1645846289125,0.04816432,39420.0,39415.0,0.502]
[1645846289326,0.00034206,39419.0,39415.0,0.68282552]
[1645846289628,0.00034206,39419.0,39415.0,0.502]
[1645846290327,0.04816432,39420.0,39415.0,0.5]
[1645846291164,0.04816432,39420.0,39416.0,0.7697]
[1645846291464,0.04816432,39420.0,39417.0,1.408325]
[1645846291666,0.04816432,39420.0,39419.0,0.7697]
[1645846291862,0.04816432,39420.0,39419.0,0.8697]
[1645846292267,0.04778056,39420.0,39419.0,0.8697]
[1645846292463,0.04778056,39420.0,39419.0,0.89491]
[1645846292663,0.04778056,39420.0,39419.0,1.77482192]
[1645846292864,0.04778056,39420.0,39419.0,1.55052552]
[1645846293263,0.04778056,39420.0,39419.0,1.95564912]
[1645846293463,0.04778056,39420.0,39419.0,1.55052552]
[1645846294512,0.04778056,39420.0,39419.0,0.78082552]
[1645846295313,0.04778056,39420.0,39419.0,1.55052552]
[1645846295716,0.04778056,39420.0,39419.0,1.95533235]
[1645846296014,0.04778056,39420.0,39419.0,1.18563235]
[1645846296015,0.04686716,39420.0,39419.0,1.18563235]
[1645846296217,0.04686716,39420.0,39419.0,0.78082552]
[1645846296618,0.04686716,39420.0,39419.0,1.18567437]
[1645846296815,0.04686716,39420.0,39419.0,0.78082552]
[1645846297015,0.04686716,39420.0,39419.0,1.19451393]
[1645846297214,0.04686716,39420.0,39419.0,1.96621393]
[1645846297423,0.04686716,39420.0,39419.0,1.09651393]
[1645846297617,0.04686716,39420.0,39419.0,0.68282552]
[1645846297916,0.04686716,39420.0,39419.0,0.502]
[1645846298361,0.04686716,39420.0,39419.0,0.5]
[1645846299263,0.04686716,39420.0,39419.0,0.502]
[1645846300463,0.04686716,39420.0,39419.0,0.5]
[1645846301162,0.04786716,39420.0,39419.0,0.5]
[1645846301363,0.04286716,39420.0,39419.0,0.5]
[1645846301918,0.04286716,39420.0,39419.0,0.82144847]
[1645846302317,0.04186716,39420.0,39419.0,0.82144847]
[1645846302519,0.04186716,39420.0,39419.0,1.00227399]
[1645846303122,0.04186716,39420.0,39419.0,1.00426557]
[1645846303419,0.04186716,39420.0,39419.0,0.73282552]
[1645846304419,0.04186716,39420.0,39419.0,0.73082552]
[1645846305225,0.04186716,39420.0,39419.0,0.73282552]
[1645846306468,0.04186716,39420.0,39419.0,1.3197]
[1645846306668,0.04186716,39420.0,39419.0,1.383112]
[1645846306868,0.04186716,39420.0,39419.0,1.95114249]
[1645846307068,0.04186716,39420.0,39419.0,2.37506963]
[1645846307268,0.04186716,39420.0,39419.0,2.37706963]
[1645846308468,0.04186716,39420.0,39419.0,2.37506963]
[1645846308669,0.04186716,39420.0,39419.0,2.10536963]
[1645846308870,0.04186716,39420.0,39419.0,1.55405266]
[1645846309070,0.04119128,39420.0,39419.0,1.55405266]
[1645846309714,0.04119128,39420.0,39419.0,1.05405266]
[1645846309914,0.22727815,39420.0,39419.0,1.05405266]
[1645846310115,0.22727815,39420.0,39419.0,0.87322714]
[1645846310316,0.21727815,39420.0,39419.0,0.87322714]
[1645846310520,0.03119128,39420.0,39419.0,0.87322714]
[1645846311215,0.03119128,39420.0,39419.0,0.87522714]
[1645846311414,0.03119128,39420.0,39419.0,0.37522714]
[1645846311613,0.03119128,39420.0,39419.0,0.55605266]
[1645846311815,0.03119128,39420.0,39419.0,0.37522714]
[1645846312416,0.03119128,39420.0,39419.0,0.37322714]
[1645846313263,0.03119128,39420.0,39419.0,0.37522714]
[1645846314467,0.03119128,39420.0,39419.0,0.47392714]
[1645846314666,0.03119128,39420.0,39419.0,1.82507263]
[1645846316067,0.03119128,39420.0,39419.0,1.42445266]
[1645846316266,0.03119128,39420.0,39419.0,0.65475266]
[1645846316666,0.03119128,39420.0,39419.0,0.47392714]
[1645846316932,0.03119128,39420.0,39419.0,0.55297351]
[1645846317133,0.03119128,39420.0,39419.0,0.37322714]
[1645846317330,0.03119128,39420.0,39419.0,0.37622714]
[1645846318730,0.03119128,39420.0,39419.0,0.37322714]
[1645846319132,0.03119128,39420.0,39419.0,0.37422714]
[1645846320530,0.03119128,39420.0,39419.0,0.37322714]
[1645846325815,0.03119128,39420.0,39419.0,0.32322714]
[1645846326019,0.02619128,39420.0,39419.0,0.32322714]
[1645846327318,0.02619128,39420.0,39419.0,0.32422714]
[1645846328570,0.02619128,39420.0,39419.0,0.37322714]
[1645846329167,0.02619128,39420.0,39419.0,0.42522714]
[1645846329964,0.02619128,39420.0,39419.0,0.60497351]
[1645846330166,0.02619128,39420.0,39419.0,0.42522714]
[1645846330366,0.02619128,39420.0,39419.0,0.42322714]
[1645846331367,0.02619128,39420.0,39419.0,0.42522714]
[1645846331765,0.02619128,39420.0,39419.0,1.19492714]
[1645846332016,0.02619128,39420.0,39419.0,0.92522714]
[1645846332218,0.02619128,39420.0,39419.0,1.92537351]
[1645846332417,0.02619128,39420.0,39419.0,1.74350714]
[1645846332617,0.02619128,39420.0,39419.0,1.92325351]
[1645846335318,0.02619128,39420.0,39419.0,1.92525351]
[1645846336568,0.02619128,39420.0,39419.0,1.92325351]
[1645846337368,0.02619128,39420.0,39419.0,1.92525351]
[1645846338471,0.02619128,39420.0,39419.0,1.92325351]
[1645846338876,0.02619128,39420.0,39419.0,2.95940351]
[1645846339070,0.00013655,39421.0,39420.0,1.7197]
[1645846339272,0.00013655,39421.0,39420.0,3.18144]
[1645846339524,0.4318,39426.0,39420.0,3.36118637]
[1645846339724,0.4318,39426.0,39422.0,0.9197]
[1645846339925,0.4318,39426.0,39423.0,0.8204]
[1645846340123,0.4318,39426.0,39424.0,0.063404]
[1645846340425,0.4318,39426.0,39425.0,0.5507]
[1645846340623,0.4318,39426.0,39425.0,0.6007]
[1645846341224,0.4318,39426.0,39425.0,0.5507]
[1645846341431,0.4318,39426.0,39425.0,0.502]
[1645846342624,0.07182074,39424.0,39421.0,0.17974637]
[1645846342825,0.07182074,39424.0,39421.0,0.22974637]
[1645846343024,0.07182074,39424.0,39421.0,0.05]
[1645846343263,0.07182074,39424.0,39421.0,0.002]
[1645846343468,0.07195731,39424.0,39421.0,0.002]
[1645846343665,0.07195731,39424.0,39421.0,0.0015431]
[1645846344366,0.07182074,39424.0,39421.0,0.0015431]
[1645846344565,0.07182074,39424.0,39420.0,0.99078637]
[1645846344765,0.07218931,39424.0,39420.0,0.99078637]
[1645846345266,0.07218931,39424.0,39420.0,0.99378637]
[1645846345581,0.07182074,39424.0,39420.0,0.99378637]
[1645846345765,0.07182074,39424.0,39420.0,0.94378637]
[1645846345766,0.19205753,39423.0,39420.0,0.94378637]
[1645846345970,0.377732,39422.0,39420.0,0.94378637]
[1645846346669,0.377732,39422.0,39420.0,0.94078637]
[1645846346915,0.19219381,39423.0,39420.0,0.94078637]
[1645846347317,0.001,39422.0,39420.0,0.94078637]
[1645846348520,0.19219381,39423.0,39420.0,0.94078637]
[1645846349324,0.19205753,39423.0,39420.0,0.94178637]
[1645846349523,0.19242582,39423.0,39420.0,0.94178637]
[1645846350524,0.19205753,39423.0,39420.0,0.94078637]
[1645846350766,0.19242582,39423.0,39420.0,0.94078637]
[1645846350965,0.00036829,39423.0,39420.0,0.94078637]
[1645846351365,0.00136829,39423.0,39420.0,0.94078637]
[1645846351564,0.001,39423.0,39420.0,0.94078637]
[1645846351968,0.00136829,39423.0,39420.0,0.94078637]
[1645846352565,0.00036829,39423.0,39420.0,0.94078637]
[1645846352768,0.07182074,39424.0,39420.0,0.94078637]
[1645846353166,0.00036829,39423.0,39420.0,0.94078637]
[1645846353968,0.07382074,39424.0,39420.0,0.94078637]
[1645846354411,0.00036829,39423.0,39420.0,0.94078637]
[1645846355211,0.07182074,39424.0,39420.0,0.94078637]
[1645846355512,0.00036829,39423.0,39420.0,0.94178637]
[1645846355911,0.34098987,39423.0,39420.0,0.94178637]
[1645846356112,0.377732,39422.0,39420.0,0.76204]
[1645846356314,0.377732,39422.0,39420.0,0.95284042]
[1645846356611,0.377732,39422.0,39419.0,0.32322714]
[1645846356816,0.55320084,39421.0,39419.0,0.32322714]
[1645846357112,0.377732,39420.0,39419.0,0.32322714]
[1645846357318,0.377732,39420.0,39419.0,0.32422714]
[1645846358571,0.377732,39420.0,39419.0,0.32322714]
[1645846359173,0.71835358,39420.0,39419.0,0.32322714]
[1645846359775,0.377732,39420.0,39419.0,0.32322714]
[1645846360781,0.377732,39420.0,39410.0,0.56583098]
[1645846360785,0.84508892,39420.0,39410.0,0.56583098]
[1645846360981,0.1,39414.0,39410.0,0.19079336]
[1645846361179,0.1,39414.0,39401.0,0.60378007]
[1645846361180,0.402942,39410.0,39401.0,0.60378007]
[1645846361381,0.402942,39410.0,39401.0,0.37503762]
[1645846361382,0.39284692,39409.0,39401.0,0.37503762]
[1645846361579,0.50226891,39408.0,39399.0,0.00036821]
[1645846361778,0.377732,39406.0,39399.0,0.00036821]
[1645846362022,0.519082,39406.0,39399.0,0.00036821]
[1645846362222,0.34214692,39405.0,39399.0,0.00036821]
[1645846362422,0.02521,39403.0,39392.0,0.05]
[1645846362628,0.34214692,39405.0,39392.0,0.0495432]
[1645846362629,0.1785274,39397.0,39392.0,0.0495432]
[1645846362823,0.1785274,39397.0,39388.0,0.48808887]
[1645846363123,0.1785274,39397.0,39388.0,0.03450909]
[1645846363324,0.1795274,39397.0,39388.0,0.03450909]
[1645846363525,0.3924,39396.0,39388.0,0.03450909]
[1645846363923,0.3924,39396.0,39391.0,0.00036821]
[1645846364427,0.3924,39396.0,39391.0,0.37528189]
[1645846364625,0.3924,39396.0,39393.0,0.37558677]
[1645846364826,0.34545038,39396.0,39393.0,0.37558677]
[1645846365129,0.34545038,39396.0,39394.0,0.40499659]
[1645846365324,0.34545038,39396.0,39394.0,0.43672759]
[1645846365526,0.34545038,39396.0,39394.0,0.031731]
[1645846367879,0.34545038,39396.0,39395.0,0.00067309]
[1645846369418,0.34545038,39396.0,39395.0,0.00467309]
[1645846370619,0.34545038,39396.0,39395.0,0.00067309]
[1645846371422,0.34545038,39396.0,39395.0,0.00567309]
[1645846372722,0.34545038,39396.0,39395.0,0.00067309]
[1645846372925,0.34545038,39396.0,39394.0,0.9017989]
[1645846373370,0.34545038,39396.0,39395.0,0.005]
[1645846374671,0.34545038,39396.0,39394.0,0.9017989]
[1645846374971,0.31090535,39396.0,39395.0,0.00067309]
[1645846375171,0.31090535,39396.0,39394.0,0.9017989]
[1645846375371,0.31090535,39396.0,39395.0,0.00067309]
[1645846375579,0.31090535,39396.0,39394.0,0.1360989]
[1645846375772,0.31090535,39396.0,39394.0,0.135731]
[1645846375972,0.31090535,39396.0,39394.0,0.1360989]
[1645846377020,0.31090535,39396.0,39394.0,0.135731]
[1645846377220,0.31090535,39396.0,39394.0,0.131731]
[1645846377420,0.31090535,39396.0,39394.0,0.135731]
[1645846377823,0.31090535,39396.0,39394.0,0.104]
[1645846378226,0.31090535,39396.0,39394.0,0.004]
[1645846378623,0.31090535,39396.0,39393.0,0.00036791]
[1645846379425,0.31090535,39396.0,39393.0,0.00236791]
[1645846380424,0.31090535,39396.0,39394.0,0.00067309]
[1645846380667,0.31090535,39396.0,39394.0,0.06412109]
[1645846381067,0.31090535,39396.0,39395.0,0.7697]
[1645846381267,0.31090535,39396.0,39395.0,0.8197]
[1645846381467,0.31090535,39396.0,39395.0,0.8697]
[1645846382868,0.30590535,39396.0,39395.0,0.8697]
[1645846383471,0.30590535,39396.0,39395.0,0.8747]
[1645846384716,0.262278,39396.0,39395.0,0.8697]
[1645846385315,0.262278,39396.0,39395.0,0.8747]
[1645846385915,0.262278,39396.0,39395.0,0.9254]
[1645846386819,0.262278,39396.0,39395.0,0.1507]
[1645846388019,0.262278,39396.0,39395.0,0.56185714]
[1645846388674,0.262278,39396.0,39395.0,0.56253023]
[1645846388871,0.262278,39396.0,39395.0,0.52628677]
[1645846389075,0.262278,39396.0,39395.0,0.15137309]
[1645846389472,0.262278,39396.0,39395.0,0.15537309]
[1645846390273,0.262278,39396.0,39395.0,0.55705076]
[1645846390673,0.262278,39396.0,39395.0,0.55305076]
[1645846391575,0.262278,39396.0,39395.0,0.55705076]
[1645846392020,0.262278,39396.0,39395.0,0.15537309]
[1645846392218,0.262278,39396.0,39395.0,0.55705326]
[1645846393420,0.262278,39396.0,39395.0,0.18613958]
[1645846393618,0.262278,39396.0,39395.0,0.95583958]
[1645846394420,0.262278,39396.0,39395.0,0.18613958]
[1645846394622,0.262278,39396.0,39395.0,0.18213958]
[1645846394823,0.23450901,39396.0,39395.0,0.12676649]
[1645846395021,0.23450901,39396.0,39395.0,0.47480342]
[1645846395222,0.23450901,39396.0,39395.0,0.50156991]
[1645846395421,0.23450901,39396.0,39395.0,0.50556991]
[1645846396670,0.23450901,39396.0,39395.0,0.45156991]
[1645846396868,0.23450901,39396.0,39394.0,0.37526223]
[1645846397066,0.23450901,39396.0,39394.0,0.40699123]
[1645846397267,0.23450901,39396.0,39394.0,0.031729]
[1645846397467,0.19263242,39395.0,39393.0,0.00036747]
[1645846398566,0.19263242,39395.0,39392.0,0.37489476]
[1645846398766,0.19263242,39395.0,39392.0,0.37526224]
[1645846399419,0.19363242,39395.0,39392.0,0.37526224]
[1645846399620,0.19363242,39395.0,39392.0,0.37489476]
[1645846399820,0.19363242,39395.0,39394.0,0.32144181]
[1645846400621,0.19263242,39395.0,39394.0,0.32144181]
[1645846401220,0.19263242,39395.0,39390.0,0.06872792]
[1645846401221,0.19263242,39395.0,39393.0,0.37526195]
[1645846401420,0.19363242,39395.0,39393.0,0.37526195]
[1645846402220,0.19363242,39395.0,39393.0,0.37489476]
[1645846402721,0.19263242,39395.0,39393.0,0.37489476]
[1645846403466,0.19263242,39395.0,39393.0,0.37689476]
[1645846403669,0.19263242,39395.0,39394.0,0.44362268]
[1645846405268,0.19263242,39395.0,39394.0,0.06872792]
[1645846405469,0.19263242,39395.0,39394.0,0.07072792]
[1645846406068,0.23500901,39396.0,39394.0,0.07072792]
[1645846406271,0.23500901,39396.0,39395.0,0.06872792]
[1645846406272,0.18109604,39396.0,39395.0,0.06872792]
[1645846407520,0.18109604,39396.0,39395.0,0.07072792]
[1645846408718,0.00083727,39399.0,39395.0,0.06872792]
[1645846408918,0.00083727,39399.0,39396.0,0.06872792]
[1645846409121,0.00083727,39399.0,39397.0,0.06872792]
[1645846409318,0.00083727,39399.0,39398.0,0.06872792]
[1645846409522,0.00083727,39399.0,39398.0,0.37521533]
[1645846409918,0.00083727,39399.0,39398.0,0.44394325]
[1645846411567,0.00183727,39399.0,39398.0,0.44394325]
[1645846411968,0.00183727,39399.0,39397.0,0.37558249]
[1645846412669,0.00183727,39399.0,39398.0,0.32162212]
[1645846412868,0.00183727,39399.0,39397.0,0.00036716]
[1645846412869,0.37956927,39399.0,39397.0,0.32162212]
[1645846413267,0.37956927,39399.0,39396.0,0.32198929]
[1645846413668,0.00183727,39399.0,39396.0,0.32198929]
[1645846414068,0.00183727,39399.0,39396.0,0.32162212]
[1645846414268,0.377732,39398.0,39396.0,0.32198929]
[1645846414522,0.00183727,39399.0,39396.0,0.32198929]
[1645846414719,0.00083727,39399.0,39396.0,0.32198929]
[1645846415324,0.00083727,39399.0,39396.0,0.32162212]
[1645846415522,0.00083727,39399.0,39396.0,0.32385343]
[1645846416125,0.00083727,39399.0,39397.0,0.32162212]
[1645846416323,0.00083727,39399.0,39396.0,0.00223131]
[1645846416525,0.00083727,39399.0,39396.0,0.002]
[1645846416725,0.00083727,39399.0,39396.0,0.32185343]
[1645846417427,0.00083727,39399.0,39396.0,0.32385343]
[1645846417624,0.00083727,39399.0,39397.0,0.32162212]
[1645846417824,0.377732,39398.0,39397.0,0.32162212]
[1645846418024,0.00083727,39399.0,39396.0,0.32398143]
[1645846418476,0.377732,39398.0,39396.0,0.32398143]
[1645846418675,0.00083727,39399.0,39396.0,0.32398143]
[1645846418873,0.00083727,39399.0,39393.0,0.37521533]
[1645846418874,0.377732,39398.0,39395.0,0.32162212]
[1645846419074,0.00083727,39399.0,39396.0,0.32162212]
[1645846419876,0.377732,39398.0,39395.0,0.32398144]
[1645846420079,0.00083727,39399.0,39395.0,0.32362212]
[1645846420477,0.377732,39398.0,39396.0,0.00035931]
[1645846421276,0.377732,39398.0,39394.0,0.32162212]
[1645846421477,0.001,39398.0,39395.0,0.00036696]
[1645846421677,0.001,39398.0,39395.0,0.32198908]
[1645846421922,0.377732,39397.0,39395.0,0.32198908]
[1645846422119,0.001,39398.0,39395.0,0.32198908]
[1645846422318,0.377732,39397.0,39395.0,0.32198908]
[1645846422520,0.377732,39397.0,39395.0,0.32162212]
[1645846422726,0.377732,39397.0,39395.0,0.32198908]
[1645846423021,0.00083727,39399.0,39391.0,0.32163143]
[1645846423022,0.33573706,39396.0,39391.0,0.32163143]
[1645846423224,0.57235109,39389.0,39387.0,0.002]
[1645846423424,0.57235109,39389.0,39385.0,0.001]
[1645846423425,1.15,39387.0,39385.0,0.001]
[1645846423621,0.81279597,39386.0,39382.0,0.0541]
[1645846423821,0.09932691,39384.0,39382.0,0.0041]
[1645846424023,1.72349049,39383.0,39380.0,0.0041]
[1645846424221,0.81279597,39382.0,39380.0,0.0041]
[1645846424622,1.15,39381.0,39380.0,0.0041]
[1645846424821,1.596882,39381.0,39380.0,0.0041]
[1645846425023,1.527732,39380.0,39378.0,0.0031]
[1645846425227,0.377732,39378.0,39376.0,0.32275456]
[1645846425423,0.08605,39382.0,39376.0,0.001]
[1645846425424,0.03535,39382.0,39376.0,0.001]
[1645846425676,0.19575849,39383.0,39376.0,0.001]
[1645846425677,0.377732,39381.0,39376.0,0.001]
[1645846426478,0.377732,39381.0,39377.0,0.00036553]
[1645846427477,0.377732,39381.0,39376.0,0.001]
[1645846427678,0.377732,39381.0,39377.0,0.00036552]
[1645846428079,0.377732,39381.0,39377.0,5.52e-06]
[1645846428381,0.377732,39378.0,39377.0,5.52e-06]
[1645846428581,0.531222,39378.0,39377.0,5.52e-06]
[1645846428779,0.531222,39378.0,39376.0,0.001]
[1645846428981,0.47705891,39377.0,39376.0,0.001]
[1645846429178,0.52775891,39377.0,39376.0,0.001]
[1645846429426,0.52875891,39377.0,39376.0,0.001]
[1645846429626,0.52875891,39377.0,39374.0,0.0031]
[1645846429831,0.47705891,39375.0,39371.0,0.001]
[1645846430028,1.9197,39376.0,39369.0,0.0001]
[1645846430029,0.47705891,39372.0,39369.0,0.0001]
[1645846430228,0.22763,39373.0,39361.0,0.0131]
[1645846430229,0.378642,39369.0,39361.0,0.0131]
[1645846430433,0.09932691,39365.0,39361.0,0.0131]
[1645846430628,0.34471511,39364.0,39361.0,0.0131]
[1645846431329,0.34471511,39364.0,39362.0,0.00242692]
[1645846431732,0.02712,39369.0,39362.0,0.00242692]
[1645846431733,0.00191,39369.0,39362.0,0.00242692]
[1645846431931,0.377745,39368.0,39362.0,0.00242692]
[1645846433575,0.378745,39368.0,39362.0,0.00242692]
[1645846434776,0.377745,39368.0,39362.0,0.00242692]
[1645846434975,0.377745,39368.0,39363.0,0.00036388]
[1645846435978,0.377745,39368.0,39362.0,0.00242692]
[1645846436179,0.377745,39368.0,39364.0,0.00036387]
[1645846437022,0.00091,39369.0,39362.0,0.00242692]
[1645846437222,0.00091,39369.0,39364.0,0.00036387]
[1645846437223,0.377745,39368.0,39364.0,0.00036387]
[1645846437425,0.377745,39368.0,39361.0,0.038504]
[1645846437426,0.09932691,39365.0,39361.0,0.0121]
[1645846437625,0.09932691,39365.0,39356.0,0.0041]
[1645846437626,0.377745,39362.0,39356.0,0.0041]
[1645846437823,0.15002691,39361.0,39356.0,0.0041]
[1645846438024,0.90770324,39360.0,39356.0,0.0041]
[1645846438327,0.90770324,39360.0,39353.0,0.0041]
[1645846438328,1.527745,39358.0,39353.0,0.0031]
[1645846438523,0.377745,39356.0,39353.0,0.0031]
[1645846438723,0.09932691,39354.0,39349.0,0.00171994]
[1645846438927,0.428445,39353.0,39349.0,0.00171994]
[1645846439124,0.807945,39353.0,39349.0,0.00171994]
[1645846439324,1.13916574,39353.0,39349.0,0.00171994]
[1645846439528,1.13916574,39353.0,39348.0,0.001]
[1645846439529,1.15,39350.0,39348.0,0.001]
[1645846439726,0.75966574,39349.0,39348.0,0.001]
[1645846440425,0.428445,39349.0,39348.0,0.001]
[1645846440878,1.15,39350.0,39348.0,0.001]
[1645846441074,0.377745,39349.0,39348.0,0.001]
[1645846442874,1.15,39350.0,39348.0,0.001]
[1645846443478,0.377745,39349.0,39348.0,0.001]
[1645846443772,1.15,39350.0,39348.0,0.001]
[1645846445222,1.15,39349.0,39341.0,0.00042566]
[1645846445422,1.15,39348.0,39339.0,0.01784366]
[1645846445626,0.3795,39353.0,39340.0,0.05]
[1645846445822,0.3795,39353.0,39339.0,0.01784366]
[1645846446423,0.7071628,39352.0,39339.0,0.01784366]
[1645846446624,0.22528421,39351.0,39338.0,0.04]
[1645846446824,0.7071628,39350.0,39338.0,0.04]
[1645846447023,0.377745,39346.0,39338.0,0.04]
[1645846447624,0.378745,39346.0,39338.0,0.04]
[1645846448170,0.378745,39346.0,39339.0,0.00036373]
[1645846448371,0.00036368,39344.0,39339.0,0.00036373]
[1645846448576,0.377745,39343.0,39339.0,0.00036373]
[1645846449172,0.377745,39343.0,39338.0,0.04]
[1645846449371,0.377745,39343.0,39339.0,0.00036373]
[1645846449574,0.37910869,39343.0,39339.0,0.00036373]
[1645846450473,0.378745,39343.0,39338.0,0.04]
[1645846450674,0.26130027,39343.0,39339.0,0.00036373]
[1645846450973,0.26030027,39343.0,39339.0,0.00036373]
[1645846451380,0.00036369,39343.0,39339.0,0.32931371]
[1645846451575,0.001,39348.0,39339.0,0.32894998]
[1645846451775,0.001,39348.0,39339.0,0.32931371]
[1645846452025,0.00036369,39343.0,39339.0,0.32931371]
[1645846452223,0.00036369,39343.0,39339.0,0.00036373]
[1645846452527,0.00083727,39342.0,39339.0,0.00036373]
[1645846452921,0.00083727,39342.0,39338.0,0.04]
[1645846453121,0.00083727,39342.0,39339.0,0.00022427]
[1645846453521,0.00183727,39342.0,39339.0,0.00022427]
[1645846453924,0.377758,39341.0,39339.0,0.00022427]
[1645846454124,0.377758,39341.0,39338.0,0.04]
[1645846454322,0.377758,39341.0,39339.0,0.00036358]
[1645846455323,0.377758,39341.0,39338.0,0.04]
[1645846455770,0.377758,39340.0,39338.0,0.04]
[1645846455970,0.00083727,39342.0,39338.0,0.04]
[1645846455971,0.37859527,39342.0,39338.0,0.04]
[1645846456171,0.32894998,39341.0,39338.0,0.04]
[1645846456374,0.377758,39340.0,39338.0,0.04]
[1645846456570,0.377758,39339.0,39338.0,0.04]
[1645846456872,0.377758,39339.0,39338.0,0.0403451]
[1645846457672,0.377758,39339.0,39338.0,0.04]
[1645846457673,0.378758,39339.0,39338.0,0.04]
[1645846458876,0.377758,39339.0,39338.0,0.04]
[1645846459621,0.379758,39339.0,39338.0,0.04]
[1645846459921,0.09466717,39339.0,39338.0,0.04]
[1645846460121,0.377758,39341.0,39338.0,0.04]
[1645846460921,0.377758,39341.0,39338.0,0.035]
[1645846461527,0.379758,39341.0,39338.0,0.035]
[1645846462924,0.37859927,39342.0,39338.0,0.035]
[1645846463974,0.37859927,39342.0,39338.0,0.03536138]
[1645846464781,0.00083727,39342.0,39339.0,0.377762]
[1645846464976,0.00083727,39342.0,39340.0,0.0507]
[1645846465175,0.00083727,39342.0,39341.0,0.377762]
[1645846465376,0.00083727,39342.0,39341.0,0.0507]
[1645846466177,0.00083727,39342.0,39341.0,0.428462]
[1645846466579,0.00083727,39342.0,39341.0,0.0507]
[1645846467022,0.00083727,39342.0,39341.0,0.428462]
[1645846467225,0.00026602,39342.0,39341.0,0.0507]
[1645846468223,0.00026602,39342.0,39341.0,0.111968]
[1645846468423,0.00026602,39342.0,39341.0,0.0507]
[1645846469123,0.00026602,39342.0,39341.0,0.75859518]
[1645846469334,0.00026602,39342.0,39341.0,1.38927818]